fUST/lending_fUST_20250113
["ID","MTS","AMOUNT","RATE_DAILY","PERIOD"]
[348694495,1736721040593,-500.0,0.00019452,3]
[348694496,1736721040602,-547.83,0.00019452,3]
[348694497,1736721040612,-500.0,0.00019452,3]
[348694498,1736721040621,-500.0,0.00019452,3]
[348694499,1736721040630,-500.0,0.00019452,3]
[348694500,1736721040640,-500.0,0.00019452,3]
[348694501,1736721040650,-154.10105987,0.00019452,3]
[348694502,1736721040659,-500.0,0.00019452,3]
[348694503,1736721040668,-500.0,0.00019452,3]
[348694504,1736721040678,-500.0,0.00019452,3]
[348694505,1736721040687,-500.0,0.00019452,3]
[348694506,1736721040696,-500.0,0.00019452,3]
[348694507,1736721040705,-500.0,0.00019452,3]
[348694508,1736721040714,-500.0,0.00019452,3]
[348694509,1736721040723,-348.58619682,0.00019452,3]
[348694510,1736721040733,-500.0,0.00019452,3]
[348694511,1736721040742,-500.0,0.00019452,3]
[348694512,1736721040752,-500.0,0.00019452,3]
[348694513,1736721040762,-500.0,0.00019452,3]
[348694514,1736721040771,-500.0,0.00019452,3]
[348694515,1736721040781,-500.0,0.00019452,3]
[348694516,1736721040790,-500.0,0.00019452,3]
[348694517,1736721040800,-500.0,0.00019452,3]
[348694518,1736721040809,-500.0,0.00019452,3]
[348694519,1736721040819,-348.62794597,0.00019452,3]
[348694520,1736721040828,-500.0,0.00019452,3]
[348694521,1736721040838,-500.0,0.00019452,3]
[348694522,1736721040848,-500.0,0.00019452,3]
[348694523,1736721040860,-500.0,0.00019452,3]
[348694524,1736721040870,-500.0,0.00019452,3]
[348694525,1736721040880,-500.0,0.00019452,3]
[348694526,1736721040890,-508.31435351,0.00019452,3]
[348694527,1736721040899,-500.0,0.00019452,3]
[348694528,1736721040909,-500.0,0.00019452,3]
[348694529,1736721040919,-500.0,0.00019452,2]
[348694530,1736721040928,-500.0,0.00019452,3]
[348694531,1736721040937,-500.0,0.00019452,3]
[348694532,1736721040948,-500.0,0.00019452,3]
[348694533,1736721040958,-621.25,0.00019452,3]
[348694534,1736721040969,-497.08,0.00019452,3]
[348694535,1736721040979,-1530.32,0.00019452,3]
[348694536,1736721040989,-500.0,0.00019452,3]
[348694537,1736721040998,-500.0,0.00019452,3]
[348694538,1736721041007,-500.0,0.00019452,3]
[348694539,1736721041016,-500.0,0.00019452,3]
[348694540,1736721041026,-500.0,0.00019452,3]
[348694541,1736721041035,-500.0,0.00019452,3]
[348694542,1736721041044,-500.0,0.00019452,3]
[348694543,1736721041054,-500.0,0.00019452,3]
[348694544,1736721041063,-500.0,0.00019452,3]
[348694545,1736721041073,-500.0,0.00019452,3]
[348694546,1736721041082,-500.0,0.00019452,3]
[348694547,1736721041091,-1075.21,0.00019452,3]
[348694548,1736721041101,-500.0,0.00019452,3]
[348694549,1736721041110,-500.0,0.00019452,3]
[348694550,1736721041119,-500.0,0.00019452,3]
[348694551,1736721041128,-500.0,0.00019452,3]
[348694552,1736721041139,-500.0,0.00019452,3]
[348694553,1736721041148,-500.0,0.00019452,3]
[348694554,1736721041158,-500.0,0.00019452,3]
[348694555,1736721041168,-602.24,0.00019452,3]
[348694556,1736721041178,-500.0,0.00019452,3]
[348694557,1736721041187,-500.0,0.00019452,3]
[348694558,1736721041196,-500.0,0.00019452,3]
[348694559,1736721041206,-500.0,0.00019452,3]
[348694560,1736721041215,-500.0,0.00019452,3]
[348694561,1736721041224,-500.0,0.00019452,3]
[348694562,1736721041234,-11555.08,0.00019452,3]
[348694563,1736721041243,-500.0,0.00019452,3]
[348694564,1736721041252,-500.0,0.00019452,3]
[348694565,1736721041261,-500.0,0.00019452,3]
[348694566,1736721041271,-2026.43,0.00019452,3]
[348694567,1736721041280,-500.0,0.00019452,3]
[348694568,1736721041289,-500.0,0.00019452,3]
[348694569,1736721041299,-550.76,0.00019452,3]
[348694570,1736721041308,-500.0,0.00019452,3]
[348694571,1736721041317,-859.94146988,0.00019452,3]
[348694572,1736721041400,-45.37853012,0.00019452,3]
[348694573,1736721041410,-500.0,0.00019452,3]
[348694574,1736721041419,-682.86,0.00019452,3]
[348694575,1736721041429,-500.0,0.00019452,3]
[348694576,1736721041438,-500.0,0.00019452,3]
[348694577,1736721041447,-575.62,0.00019452,3]
[348694578,1736721041457,-500.0,0.00019452,3]
[348694579,1736721041466,-1406.2,0.00019452,3]
[348694580,1736721041475,-500.0,0.00019452,3]
[348694581,1736721041485,-500.0,0.00019452,3]
[348694582,1736721041494,-500.0,0.00019452,3]
[348694583,1736721041503,-500.0,0.00019452,3]
[348694584,1736721041512,-171.937,0.0001946,2]
[348694585,1736721041522,-153.2995019,0.00019644,2]
[348694586,1736721041532,-342.3864402,0.00019644,2]
[348694587,1736721041541,-153.0,0.00019644,2]
[348694588,1736721041550,-853.07832746,0.00019693,2]
[348694589,1736721041560,-591.12,0.00019725,3]
[348694590,1736721041570,-1354.77,0.00019726,3]
[348694591,1736721041579,-500.0,0.00019726,3]
[348694592,1736721041589,-500.0,0.00019726,3]
[348694593,1736721041599,-500.0,0.00019726,3]
[348694594,1736721041608,-500.0,0.00019726,3]
[348694595,1736721041617,-500.0,0.00019726,3]
[348694596,1736721041626,-500.0,0.00019726,3]
[348694597,1736721041636,-500.0,0.00019726,3]
[348694598,1736721041645,-500.0,0.00019726,3]
[348694599,1736721041655,-500.0,0.00019726,3]
[348694600,1736721041664,-500.0,0.00019726,3]
[348694601,1736721041673,-500.0,0.00019726,3]
[348694602,1736721041683,-596.03546013,0.00019726,3]
[348694603,1736721041692,-557.12807984,0.00019726,3]
[348694604,1736721041701,-500.0,0.00019726,3]
[348694605,1736721041711,-500.0,0.00019726,3]
[348694606,1736721041721,-500.0,0.00019726,3]
[348694607,1736721041730,-500.0,0.00019726,3]
[348694608,1736721041739,-500.0,0.00019726,3]
[348694609,1736721041748,-500.0,0.00019726,2]
[348694610,1736721041758,-500.0,0.00019726,3]
[348694611,1736721041767,-500.0,0.00019726,3]
[348694612,1736721041776,-500.0,0.00019726,3]
[348694613,1736721041785,-500.0,0.00019726,3]
[348694614,1736721041794,-500.0,0.00019726,3]
[348694615,1736721041804,-500.0,0.00019726,3]
[348694616,1736721041895,-500.0,0.00019726,3]
[348694617,1736721041906,-500.0,0.00019726,3]
[348694618,1736721041915,-500.0,0.00019726,3]
[348694619,1736721041924,-500.0,0.00019726,3]
[348694620,1736721041934,-500.0,0.00019726,3]
[348694621,1736721041943,-500.0,0.00019726,3]
[348694622,1736721041952,-500.0,0.00019726,3]
[348694623,1736721041961,-500.0,0.00019726,3]
[348694624,1736721041970,-256.96,0.00019726,3]
[348694625,1736721041979,-505.03023111,0.00019726,3]
[348694626,1736721041988,-500.0,0.00019726,3]
[348694627,1736721041997,-500.0,0.00019726,3]
[348694628,1736721042006,-326.0,0.00019726,3]
[348694629,1736721042015,-500.0,0.00019726,3]
[348694630,1736721042024,-500.0,0.00019726,3]
[348694631,1736721042034,-311.35615708,0.00019726,3]
[348694632,1736721042043,-500.0,0.00019726,3]
[348694633,1736721042052,-500.0,0.00019726,3]
[348694634,1736721042062,-500.0,0.00019726,3]
[348694635,1736721042071,-500.0,0.00019726,3]
[348694636,1736721042080,-649.76,0.00019726,3]
[348694637,1736721042089,-578.51341343,0.00019726,3]
[348694638,1736721042098,-500.0,0.00019726,3]
[348694639,1736721042108,-500.0,0.00019726,3]
[348694640,1736721042117,-500.0,0.00019726,3]
[348694641,1736721042126,-500.0,0.00019726,3]
[348694642,1736721042135,-500.0,0.00019726,3]
[348694643,1736721042145,-500.0,0.00019726,3]
[348694644,1736721042154,-500.0,0.00019726,3]
[348694645,1736721042163,-500.0,0.00019726,3]
[348694646,1736721042172,-500.0,0.00019726,2]
[348694647,1736721042182,-500.0,0.00019726,3]
[348694648,1736721042191,-500.0,0.00019726,3]
[348694650,1736721042200,-420.00320184,0.00019726,3]
[348694652,1736721042210,-1530.32,0.00019726,3]
[348694653,1736721042219,-500.0,0.00019726,3]
[348694655,1736721042228,-500.0,0.00019726,3]
[348694656,1736721042237,-500.0,0.00019726,3]
[348694657,1736721042246,-500.0,0.00019726,3]
[348694658,1736721042255,-500.0,0.00019726,3]
[348694659,1736721042264,-500.0,0.00019726,3]
[348694660,1736721042273,-500.0,0.00019726,3]
[348694661,1736721042282,-504.69611081,0.00019726,3]
[348694662,1736721042291,-574.70776609,0.00019726,3]
[348694663,1736721042300,-500.0,0.00019726,3]
[348694664,1736721042310,-1075.21,0.00019726,3]
[348694665,1736721042319,-500.0,0.00019726,3]
[348694666,1736721042327,-500.0,0.00019726,3]
[348694667,1736721042337,-500.0,0.00019726,3]
[348694668,1736721042345,-500.0,0.00019726,3]
[348694669,1736721042354,-500.0,0.00019726,3]
[348694670,1736721042364,-516.29,0.00019726,3]
[348694671,1736721042373,-602.24,0.00019726,3]
[348694672,1736721042382,-500.0,0.00019726,3]
[348694673,1736721042391,-500.0,0.00019726,3]
[348694674,1736721042400,-230.37426868,0.00019726,3]
[348694675,1736721042409,-500.0,0.00019726,3]
[348694676,1736721042418,-500.0,0.00019726,3]
[348694677,1736721042427,-500.0,0.00019726,3]
[348694678,1736721042437,-11555.08,0.00019726,3]
[348694679,1736721042446,-500.0,0.00019726,3]
[348694680,1736721042456,-500.0,0.00019726,3]
[348694681,1736721042465,-500.0,0.00019726,3]
[348694682,1736721042474,-2026.43,0.00019726,3]
[348694683,1736721042483,-500.0,0.00019726,3]
[348694684,1736721042493,-550.76,0.00019726,3]
[348694685,1736721042502,-500.0,0.00019726,3]
[348694686,1736721042511,-905.32,0.00019726,3]
[348694687,1736721042520,-500.0,0.00019726,3]
[348694688,1736721042531,-682.86,0.00019726,3]
[348694689,1736721042540,-500.0,0.00019726,3]
[348694690,1736721042549,-123.72133278,0.00019726,3]
[348694723,1736721045864,-376.27866722,0.00019726,3]
[348694724,1736721045874,-575.62,0.00019726,3]
[348694726,1736721045884,-500.0,0.00019726,3]
[348694727,1736721045894,-995.09633278,0.00019726,3]
[348694728,1736721045906,-411.10366722,0.00019726,3]
[348694729,1736721045915,-500.0,0.00019726,3]
[348694730,1736721045924,-573.44016869,0.00019726,3]
[348694731,1736721045934,-500.0,0.00019726,3]
[348694732,1736721045944,-500.0,0.00019726,3]
[348694733,1736721045953,-153.0,0.00019909,2]
[348694734,1736721045962,-36.80010726,0.00019909,2]
[348694749,1736721534264,-325.88743919,0.000189,2]
[348694750,1736721534288,-179.00756187,0.00019078,2]
[348694751,1736721534311,-300.0,0.00019177,2]
[348694752,1736721534334,-170.98,0.00019178,2]
[348694753,1736721534356,-500.0,0.00019178,2]
[348694754,1736721534379,-500.0,0.00019178,2]
[348694755,1736721534402,-423.15890282,0.00019178,2]
[348694756,1736721534425,-500.0,0.00019178,2]
[348694757,1736721534450,-500.0,0.00019178,2]
[348694758,1736721534473,-303.41776431,0.00019178,2]
[348694759,1736721534496,-500.0,0.00019178,2]
[348694760,1736721534519,-500.0,0.00019178,2]
[348694761,1736721534543,-841.34,0.00019178,2]
[348694762,1736721534566,-500.0,0.00019178,2]
[348694763,1736721534591,-500.0,0.00019178,2]
[348694764,1736721534615,-500.0,0.00019178,2]
[348694765,1736721534639,-500.0,0.00019178,2]
[348694766,1736721534663,-500.0,0.00019178,2]
[348694767,1736721534688,-500.0,0.00019178,2]
[348694768,1736721534714,-500.0,0.00019178,2]
[348694769,1736721534737,-500.0,0.00019178,2]
[348694770,1736721534885,-223.11,0.00019178,2]
[348694771,1736721534910,-500.0,0.00019178,2]
[348694772,1736721534934,-500.0,0.00019178,2]
[348694773,1736721534960,-500.0,0.00019178,2]
[348694774,1736721534984,-500.0,0.00019178,2]
[348694775,1736721535011,-500.0,0.00019178,2]
[348694776,1736721535035,-1935.63,0.00019178,2]
[348694777,1736721535060,-500.0,0.00019178,2]
[348694778,1736721535083,-640.55462002,0.00019178,2]
[348694779,1736721535107,-500.0,0.00019178,2]
[348694780,1736721535130,-500.0,0.00019178,2]
[348694781,1736721535153,-500.0,0.00019178,2]
[348694782,1736721535175,-240.96534475,0.00019178,2]
[348694783,1736721535200,-433.82,0.00019178,2]
[348694784,1736721535224,-785.65,0.00019178,2]
[348694785,1736721535249,-500.0,0.00019178,2]
[348694786,1736721535273,-1211.64,0.00019178,2]
[348694787,1736721535297,-2479.85,0.00019178,2]
[348694788,1736721535323,-1062.99,0.00019178,2]
[348694789,1736721535347,-500.0,0.00019178,2]
[348694790,1736721535371,-1743.72,0.00019178,2]
[348694791,1736721535397,-500.0,0.00019178,2]
[348694792,1736721535421,-670.28,0.00019178,2]
[348694793,1736721535445,-500.0,0.00019178,2]
[348694794,1736721535469,-539.61,0.00019178,2]
[348694795,1736721535493,-565.59,0.00019178,2]
[348694796,1736721535519,-868.34,0.00019178,2]
[348694797,1736721535542,-13994.34,0.00019178,2]
[348694798,1736721535566,-500.0,0.00019178,2]
[348694799,1736721535589,-500.0,0.00019178,2]
[348694800,1736721535610,-500.0,0.00019178,2]
[348694801,1736721535632,-500.0,0.00019178,2]
[348694802,1736721535655,-504.34,0.00019178,2]
[348694803,1736721535678,-500.0,0.00019178,2]
[348694804,1736721535700,-500.0,0.00019178,2]
[348694805,1736721535722,-500.0,0.00019178,2]
[348694806,1736721535744,-500.0,0.00019178,2]
[348694807,1736721535766,-500.0,0.00019178,2]
[348694808,1736721535788,-500.0,0.00019178,7]
[348694809,1736721535811,-500.0,0.00019178,2]
[348694810,1736721535834,-171.937,0.00019443,2]
[348694811,1736721535857,-500.0,0.00019452,3]
[348694812,1736721535880,-278.61,0.00019452,3]
[348694813,1736721535905,-500.0,0.00019452,3]
[348694814,1736721535929,-841.34,0.00019452,3]
[348694815,1736721535952,-500.0,0.00019452,3]
[348694816,1736721535975,-500.0,0.00019452,2]
[348694817,1736721536001,-500.0,0.00019452,3]
[348694818,1736721536024,-500.0,0.00019452,3]
[348694819,1736721536049,-500.0,0.00019452,3]
[348694820,1736721536072,-605.72,0.00019452,3]
[348694821,1736721536097,-500.0,0.00019452,2]
[348694822,1736721536123,-500.0,0.00019452,3]
[348694823,1736721536147,-1935.63,0.00019452,3]
[348694824,1736721536170,-500.0,0.00019452,3]
[348694825,1736721536192,-500.0,0.00019452,3]
[348694826,1736721536214,-500.0,0.00019452,3]
[348694827,1736721536239,-500.0,0.00019452,3]
[348694828,1736721536265,-785.65,0.00019452,3]
[348694829,1736721536293,-500.0,0.00019452,3]
[348694830,1736721536316,-1211.64,0.00019452,3]
[348694831,1736721536340,-2479.85,0.00019452,3]
[348694832,1736721536365,-1062.99,0.00019452,3]
[348694833,1736721536388,-500.0,0.00019452,3]
[348694834,1736721536412,-1743.72,0.00019452,3]
[348694835,1736721536435,-500.0,0.00019452,3]
[348694836,1736721536457,-670.28,0.00019452,3]
[348694837,1736721536482,-868.34,0.00019452,3]
[348694838,1736721536504,-13994.34,0.00019452,3]
[348694839,1736721536527,-500.0,0.00019452,3]
[348694840,1736721536549,-505.6082234,0.00019452,3]
[348694841,1736721536571,-500.0,0.00019452,3]
[348694842,1736721536593,-500.0,0.00019452,3]
[348694843,1736721536617,-504.34,0.00019452,3]
[348694844,1736721536640,-500.0,0.00019452,3]
[348694845,1736721536662,-500.0,0.00019452,3]
[348694846,1736721536684,-500.0,0.00019452,3]
[348694847,1736721536707,-500.0,0.00019452,3]
[348694848,1736721536730,-500.0,0.00019726,3]
[348694849,1736721536752,-500.0,0.00019726,3]
[348694850,1736721536777,-841.34,0.00019726,3]
[348694851,1736721536803,-500.0,0.00019726,3]
[348694852,1736721536827,-500.0,0.00019726,2]
[348694853,1736721536850,-514.26186112,0.00019726,3]
[348694854,1736721536873,-500.0,0.00019726,3]
[348694855,1736721536896,-500.0,0.00019726,2]
[348694856,1736721536918,-500.0,0.00019726,3]
[348694857,1736721536942,-1935.63,0.00019726,3]
[348694858,1736721536964,-500.0,0.00019726,3]
[348694859,1736721536987,-500.0,0.00019726,3]
[348694860,1736721537009,-500.0,0.00019726,3]
[348694861,1736721537035,-785.65,0.00019726,3]
[348694862,1736721537060,-500.0,0.00019726,3]
[348694863,1736721537082,-1211.64,0.00019726,3]
[348694864,1736721537109,-2479.85,0.00019726,3]
[348694865,1736721537132,-1062.99,0.00019726,3]
[348694866,1736721537157,-500.0,0.00019726,3]
[348694867,1736721537182,-1743.72,0.00019726,3]
[348694868,1736721537205,-500.0,0.00019726,3]
[348694869,1736721537229,-670.28,0.00019726,3]
[348694870,1736721537254,-868.34,0.00019726,3]
[348694871,1736721537279,-13994.34,0.00019726,3]
[348694872,1736721537301,-500.0,0.00019726,3]
[348694873,1736721537324,-500.0,0.00019726,3]
[348694874,1736721537348,-536.52,0.00019726,3]
[348694875,1736721537374,-504.34,0.00019726,3]
[348694876,1736721537399,-500.0,0.00019726,3]
[348694877,1736721537423,-500.0,0.00019726,3]
[348694878,1736721537447,-500.0,0.00019726,3]
[348694879,1736721537472,-500.0,0.00019726,3]
[348694880,1736721537495,-179.00756185,0.00019726,2]
[348694881,1736721537518,-153.0,0.00019754,2]
[348694882,1736721537540,-153.0,0.00019754,2]
[348694883,1736721537565,-153.0,0.00019754,2]
[348694884,1736721537586,-153.0,0.00019754,2]
[348694885,1736721537611,-153.0,0.00019754,2]
[348694886,1736721537633,-153.0,0.00019754,2]
[348694887,1736721537654,-276.0,0.00019754,2]
[348694888,1736721537677,-9628.12799157,0.0001999,3]
[348694889,1736721537703,-13745.7457291,0.0002,5]
[348695010,1736722238092,-217.25829279,0.000189,2]
[348695012,1736722238103,-539.795,0.00019,2]
[348695014,1736722238112,-153.43505304,0.00019078,2]
[348695017,1736722238121,-300.0,0.00019177,2]
[348695019,1736722238131,-280.72031512,0.00019178,2]
[348695021,1736722238140,-500.0,0.00019178,2]
[348695022,1736722238151,-500.0,0.00019178,2]
[348695025,1736722238160,-500.0,0.00019178,2]
[348695026,1736722238170,-500.0,0.00019178,2]
[348695029,1736722238179,-500.0,0.00019178,2]
[348695031,1736722238189,-500.0,0.00019178,2]
[348695033,1736722238198,-500.0,0.00019178,2]
[348695035,1736722238207,-500.0,0.00019178,2]
[348695037,1736722238216,-500.0,0.00019178,2]
[348695039,1736722238227,-500.0,0.00019178,2]
[348695041,1736722238236,-500.0,0.00019178,2]
[348695043,1736722238245,-1525.75,0.00019178,2]
[348695045,1736722238255,-500.0,0.00019178,2]
[348695047,1736722238265,-571.35,0.00019178,2]
[348695049,1736722238274,-500.0,0.00019178,2]
[348695051,1736722238284,-1693.68,0.00019178,2]
[348695053,1736722238297,-1060.19,0.00019178,2]
[348695055,1736722238307,-687.44,0.00019178,2]
[348695057,1736722238318,-863.42272285,0.00019178,2]
[348695060,1736722238330,-300.0,0.00019178,2]
[348695062,1736722238342,-1584.60742095,0.00019178,2]
[348695517,1736722262395,400.0,0.00013973,2]
[348695538,1736723189314,400.0,0.00013973,2]
[348695569,1736723432390,-194.64,0.00017465,2]
[348695570,1736723432399,-258.300282,0.00018788,2]
[348695571,1736723432455,-41.699718,0.00018788,2]
[348695572,1736723432464,-155.0,0.00018789,2]
[348695573,1736723432474,-155.0,0.00018789,2]
[348695574,1736723432483,-155.0,0.00018789,2]
[348695575,1736723432492,-155.0,0.00018789,2]
[348695576,1736723432502,-155.0,0.00018789,2]
[348695577,1736723432511,-155.0,0.00018789,2]
[348695578,1736723432521,-155.0,0.00018789,2]
[348695579,1736723432531,-155.0,0.00018789,2]
[348695580,1736723432540,-260.0,0.00018789,2]
[348695581,1736723432549,-27.250282,0.000189,2]
[348695627,1736723438149,-170.82885069,0.000189,2]
[348695629,1736723438158,-159.4332578,0.00019,2]
[348695839,1736723440405,-296.64061515,0.00019,2]
[348695842,1736723440417,-90.52312705,0.00019,2]
[348695844,1736723440426,-302.8183302,0.00019,2]
[348695846,1736723440435,-158.0539805,0.00019078,2]
[348695847,1736723440445,-151.17146547,0.00019166,2]
[348695849,1736723440454,-485.45071472,0.0001917,2]
[348695852,1736723440466,-3014.54928528,0.0001917,2]
[348695853,1736723440475,-5439.0,0.00019177,2]
[348695855,1736723440484,-2526.66,0.00019178,2]
[348695857,1736723440493,-500.0,0.00019178,2]
[348695859,1736723440503,-500.0,0.00019178,2]
[348695861,1736723440512,-500.0,0.00019178,2]
[348695863,1736723440521,-500.0,0.00019178,2]
[348695865,1736723440530,-336.21679325,0.00019178,2]
[348695867,1736723440539,-2262.92,0.00019178,2]
[348695869,1736723440548,-500.0,0.00019178,2]
[348695870,1736723440557,-500.0,0.00019178,2]
[348695872,1736723440566,-1972.62,0.00019178,2]
[348695874,1736723440575,-500.0,0.00019178,2]
[348695876,1736723440585,-500.0,0.00019178,2]
[348695878,1736723440594,-500.0,0.00019178,2]
[348695880,1736723440603,-972.38,0.00019178,2]
[348695882,1736723440612,-500.0,0.00019178,2]
[348695884,1736723440620,-500.0,0.00019178,2]
[348695885,1736723440630,-1841.35,0.00019178,2]
[348695887,1736723440639,-500.0,0.00019178,2]
[348695889,1736723440648,-500.0,0.00019178,2]
[348695891,1736723440657,-500.0,0.00019178,2]
[348695892,1736723440666,-500.0,0.00019178,2]
[348695893,1736723440675,-1070.67,0.00019178,2]
[348695894,1736723440684,-658.8,0.00019178,2]
[348695895,1736723440693,-500.0,0.00019178,2]
[348695896,1736723440702,-500.0,0.00019178,2]
[348695897,1736723440710,-529.07,0.00019178,2]
[348695898,1736723440719,-586.49,0.00019178,2]
[348695899,1736723440728,-13437.17,0.00019178,2]
[348695900,1736723440738,-921.98,0.00019178,2]
[348695901,1736723440747,-1084.76,0.00019178,2]
[348695902,1736723440755,-500.0,0.00019178,2]
[348695903,1736723440764,-500.0,0.00019178,2]
[348695904,1736723440773,-500.0,0.00019178,2]
[348695905,1736723440783,-500.0,0.00019178,2]
[348695906,1736723440792,-500.0,0.00019178,2]
[348695907,1736723440801,-500.0,0.00019178,2]
[348695908,1736723440810,-500.0,0.00019178,2]
[348695909,1736723440818,-500.09,0.00019178,2]
[348695910,1736723440827,-500.09,0.00019178,2]
[348695911,1736723440837,-500.0,0.00019178,2]
[348695912,1736723440846,-500.0,0.00019178,2]
[348695913,1736723440855,-154.42,0.00019178,2]
[348695914,1736723440864,-167.192672,0.00019178,2]
[348695915,1736723440873,-827.2466437,0.000194,2]
[348696144,1736723443154,-355.22231421,0.000194,2]
[348696146,1736723443163,-306.0,0.000194,2]
[348696148,1736723443173,-168.144,0.00019443,2]
[348696150,1736723443182,-500.0,0.00019451,2]
[348696152,1736723443191,-500.0,0.00019451,2]
[348696154,1736723443200,-500.0,0.00019451,2]
[348696156,1736723443210,-251.17896006,0.00019451,2]
[348696158,1736723443219,-601.2388276,0.00019451,2]
[348696160,1736723443228,-605.08778046,0.00019451,2]
[348696162,1736723443238,-500.0,0.00019451,3]
[348696164,1736723443247,-500.09,0.00019451,3]
[348696166,1736723443260,-500.09,0.00019451,3]
[348696168,1736723443270,-1180.42784423,0.00019452,3]
[348696171,1736723443286,-857.770001,0.00019452,3]
[348696452,1736723446105,-488.46215477,0.00019452,3]
[348696454,1736723446115,-500.0,0.00019452,3]
[348696456,1736723446124,-500.0,0.00019452,3]
[348696458,1736723446133,-500.0,0.00019452,3]
[348696460,1736723446143,-2262.92,0.00019452,3]
[348696462,1736723446152,-500.0,0.00019452,3]
[348696464,1736723446161,-500.0,0.00019452,3]
[348696466,1736723446170,-827.78009471,0.00019452,3]
[348696468,1736723446182,-1144.83990529,0.00019452,3]
[348696470,1736723446191,-500.0,0.00019452,2]
[348696472,1736723446200,-500.0,0.00019452,3]
[348696474,1736723446210,-972.38,0.00019452,3]
[348696476,1736723446219,-500.0,0.00019452,2]
[348696478,1736723446228,-500.0,0.00019452,3]
[348696480,1736723446237,-1841.35,0.00019452,3]
[348696482,1736723446246,-500.0,0.00019452,3]
[348696484,1736723446256,-500.0,0.00019452,3]
[348696486,1736723446268,-500.0,0.00019452,3]
[348696488,1736723446277,-1070.67,0.00019452,3]
[348696490,1736723446287,-658.8,0.00019452,3]
[348696492,1736723446297,-500.0,0.00019452,3]
[348696494,1736723446307,-500.0,0.00019452,3]
[348696496,1736723446317,-586.49,0.00019452,3]
[348696498,1736723446326,-13437.17,0.00019452,3]
[348696501,1736723446336,-921.98,0.00019452,3]
[348696502,1736723446345,-1084.76,0.00019452,3]
[348696505,1736723446355,-500.0,0.00019452,3]
[348696506,1736723446364,-500.0,0.00019452,3]
[348696508,1736723446373,-500.0,0.00019452,3]
[348696510,1736723446382,-500.0,0.00019452,3]
[348696512,1736723446392,-500.0,0.00019452,3]
[348696514,1736723446401,-500.0,0.00019452,3]
[348696517,1736723446410,-500.0,0.00019452,3]
[348696518,1736723446420,-500.0,0.00019452,3]
[348696521,1736723446430,-1090.30607426,0.00019719,2]
[348698712,1736724128340,400.0,0.00013973,2]
[348698749,1736724632426,-1529.95747379,0.00018244,2]
[348698763,1736724632650,-4371.08386091,0.00018244,2]
[348698765,1736724632660,-208.68654412,0.000189,2]
[348698767,1736724632669,-187.17172961,0.00019,2]
[348698851,1736724638463,-365.18427039,0.00019,2]
[348698853,1736724638472,-158.05398049,0.00019078,2]
[348698855,1736724638481,-300.0,0.00019177,2]
[348698856,1736724638491,-500.0,0.00019178,2]
[348698857,1736724638500,-1912.4,0.00019178,2]
[348698858,1736724638509,-615.69351292,0.00019178,2]